fUSD/lending_fUSD_20250521
["ID","MTS","AMOUNT","RATE_DAILY","PERIOD"]
[361828374,1747823676144,-2461.55,0.00038356,5]
[361828375,1747823676154,-2650.09,0.00038356,5]
[361828376,1747823676164,-1029.17,0.00038356,5]
[361828377,1747823676173,-655.48,0.00038356,5]
[361828378,1747823676182,-2763.51,0.00038356,5]
[361828379,1747823676192,-6358.26,0.00038356,5]
[361828380,1747823676201,-417.44228131,0.00038356,5]
[361828381,1747823676211,-3823.46,0.00038356,5]
[361828382,1747823676220,-420.0,0.00038356,5]
[361828383,1747823676231,-2138.94,0.00038356,5]
[361828384,1747823676241,-3514.65,0.00038356,5]
[361828385,1747823676251,-578.47,0.00038356,5]
[361828386,1747823676260,-1778.66,0.00038356,5]
[361828387,1747823676270,-7467.95,0.00038356,5]
[361828388,1747823676280,-4923.96,0.00038356,5]
[361828389,1747823676289,-420.87,0.00038356,5]
[361828390,1747823676299,-1642.25,0.00038356,5]
[361828391,1747823676309,-1388.95,0.00038356,5]
[361828392,1747823676319,-15894.82,0.00038356,5]
[361828393,1747823676328,-7928.56,0.00038356,5]
[361828394,1747823676338,-535.54,0.00038356,5]
[361828395,1747823676348,-3648.84,0.00038356,5]
[361828396,1747823676357,-18415.06,0.00038356,5]
[361828397,1747823676368,-584.64,0.00038356,5]
[361828398,1747823676377,-2534.37,0.00038356,5]
[361828399,1747823676395,-1096.3,0.00038356,5]
[361828400,1747823676409,-2111.71,0.00038356,5]
[361828401,1747823676419,-2727.38,0.00038356,5]
[361828402,1747823676429,-4064.18,0.00038356,5]
[361828403,1747823676439,-481.82,0.00038356,5]
[361828404,1747823676450,-1605.11,0.00038356,5]
[361828405,1747823676461,-583.63,0.00038356,5]
[361828406,1747823676471,-2791.01,0.00038356,5]
[361828407,1747823676483,-3277.38,0.00038356,5]
[361828408,1747823676494,-1946.19,0.00038356,5]
[361828409,1747823676505,-486.64,0.00038356,5]
[361828410,1747823676516,-4162.95,0.00038356,5]
[361828411,1747823676527,-1793.09,0.00038356,5]
[361828412,1747823676537,-2365.3,0.00038356,5]
[361828413,1747823676548,-5030.39,0.00038356,5]
[361828414,1747823676559,-1065.78,0.00038356,5]
[361828415,1747823676570,-5351.26,0.00038356,5]
[361828416,1747823676580,-420.0,0.00038356,5]
[361828417,1747823676592,-4366.01,0.00038356,5]
[361828418,1747823676604,-1488.03,0.00038356,5]
[361828419,1747823676615,-5387.66,0.00038356,5]
[361828420,1747823676626,-1284.33,0.00038356,5]
[361828421,1747823676638,-853.5,0.00038356,5]
[361828422,1747823676649,-3564.21,0.00038356,5]
[361828423,1747823676660,-643.95,0.00038356,5]
[361828424,1747823676672,-11304.41,0.00038356,5]
[361828425,1747823676683,-8618.58,0.00038356,5]
[361828426,1747823676695,-751.7,0.00038356,5]
[361828427,1747823676706,-873.4,0.00038356,5]
[361828428,1747823676717,-1096.95,0.00038356,5]
[361828429,1747823676727,-441.74,0.00038356,5]
[361828430,1747823676738,-781.82,0.00038356,5]
[361828431,1747823676748,-415.92453274,0.00038356,5]
[361828432,1747823676759,-871.43,0.00038356,5]
[361828433,1747823676770,-778.01,0.00038356,5]
[361828434,1747823676781,-3424.15,0.00038356,5]
[361828435,1747823676791,-6336.25,0.00038356,5]
[361828436,1747823676802,-420.0,0.00038356,5]
[361828437,1747823676813,-575.11,0.00038356,5]
[361828438,1747823676823,-469.12,0.00038356,5]
[361828439,1747823676841,-5264.38,0.00038356,5]
[361828440,1747823676853,-2778.38,0.00038356,5]
[361828441,1747823676864,-2282.35,0.00038356,5]
[361828442,1747823676875,-2508.06,0.00038356,5]
[361828443,1747823676886,-477.54,0.00038356,5]
[361828444,1747823676896,-169.07654056,0.00038356,5]
[361828445,1747823676908,-45711.39,0.00038356,5]
[361828446,1747823676919,-1438.01,0.00038356,5]
[361828447,1747823676930,-2227.33,0.00038356,5]
[361828448,1747823676941,-2994.99,0.00038356,5]
[361828449,1747823676953,-492.73,0.00038356,5]
[361828450,1747823676964,-845.16,0.00038356,5]
[361828451,1747823676976,-2847.74,0.00038356,5]
[361828452,1747823676987,-7033.02,0.00038356,5]
[361828453,1747823676998,-20631.06,0.00038356,5]
[361828454,1747823677008,-1653.01,0.00038356,5]
[361828455,1747823677019,-480.69,0.00038356,5]
[361828456,1747823677030,-440.6,0.00038356,5]
[361828457,1747823677041,-908.75,0.00038356,5]
[361828458,1747823677052,-1811.64,0.00038356,5]
[361828459,1747823677063,-1675.59,0.00038356,5]
[361828460,1747823677073,-1341.01,0.00038356,5]
[361828461,1747823677084,-1620.28,0.00038356,5]
[361828462,1747823677094,-2039.96,0.00038356,5]
[361828463,1747823677105,-659.87,0.00038356,5]
[361828464,1747823677116,-1650.39,0.00038356,5]
[361828465,1747823677127,-2331.07,0.00038356,5]
[361828466,1747823677138,-1130.47,0.00038356,5]
[361828467,1747823677149,-8529.77,0.00038356,5]
[361828468,1747823677160,-1170.52,0.00038356,5]
[361828469,1747823677171,-1019.14,0.00038356,5]
[361828470,1747823677182,-594.46,0.00038356,5]
[361828471,1747823677193,-420.0,0.00038356,5]
[361828472,1747823677204,-528.88,0.00038356,5]
[361828473,1747823677215,-224.39718393,0.00038356,5]
[361828474,1747823677226,-729.81,0.00038356,5]
[361828475,1747823677237,-6448.31,0.00038356,5]
[361828476,1747823677248,-157.265004,0.00038356,5]
[361828477,1747823677259,-4031.81,0.00038356,5]
[361828478,1747823677269,-15980.3,0.00038356,2]
[361828479,1747823677286,-569.82,0.00038356,5]
[361828480,1747823677297,-13852.49,0.00038356,5]
[361828481,1747823677308,-1991.55,0.00038356,5]
[361828482,1747823677319,-1826.19,0.00038356,5]
[361828483,1747823677330,-1260.39,0.00038356,5]
[361828484,1747823677340,-711.84,0.00038356,5]
[361828485,1747823677351,-932.88,0.00038356,5]
[361828486,1747823677362,-1316.77,0.00038356,5]
[361828487,1747823677373,-1559.3,0.00038356,5]
[361828488,1747823677384,-1672.61,0.00038356,5]
[361828489,1747823677396,-1828.91,0.00038356,5]
[361828490,1747823677408,-6643.48,0.00038356,5]
[361828491,1747823677419,-5987.12,0.00038356,5]
[361828492,1747823677430,-4970.74,0.00038356,5]
[361828493,1747823677441,-908.99,0.00038356,5]
[361828494,1747823677452,-1754.62,0.00038356,5]
[361828495,1747823677463,-636.17,0.00038356,5]
[361828496,1747823677474,-907.69,0.00038356,5]
[361828497,1747823677487,-434.27,0.00038356,5]
[361828498,1747823677499,-159.25490324,0.00038356,5]
[361828499,1747823677510,-14282.24,0.00038356,5]
[361828500,1747823677520,-2354.7,0.00038356,5]
[361828501,1747823677531,-2934.17,0.00038356,5]
[361828502,1747823677541,-420.0,0.00038356,5]
[361828503,1747823677552,-2098.09,0.00038356,5]
[361828504,1747823677563,-2370.12,0.00038356,5]
[361828505,1747823677574,-635.77,0.00038356,5]
[361828506,1747823677584,-1608.41,0.00038356,5]
[361828507,1747823677595,-2448.57,0.00038356,5]
[361828508,1747823677605,-565.39,0.00038356,5]
[361828509,1747823677616,-832.67,0.00038356,5]
[361828510,1747823677627,-1727.02,0.00038356,5]
[361828511,1747823677637,-2132.27,0.00038356,5]
[361828512,1747823677649,-674.57,0.00038356,5]
[361828513,1747823677660,-1444.81,0.00038356,5]
[361828514,1747823677671,-1244.04,0.00038356,5]
[361828515,1747823677682,-5215.67,0.00038356,5]
[361828516,1747823677694,-14461.5,0.00038356,5]
[361828517,1747823677705,-4167.33,0.00038356,5]
[361828518,1747823677715,-888.13,0.00038356,5]
[361828519,1747823677737,-207938.64,0.00038356,5]
[361828520,1747823677750,-548.09,0.00038356,5]
[361828521,1747823677762,-2319.06,0.00038356,5]
[361828522,1747823677774,-3257.11,0.00038356,5]
[361828523,1747823677785,-1507.21,0.00038356,5]
[361828524,1747823677796,-1493.55,0.00038356,5]
[361828525,1747823677807,-2557.88,0.00038356,5]
[361828526,1747823677819,-1088.44,0.00038356,5]
[361828527,1747823677831,-2873.2,0.00038356,5]
[361828528,1747823677843,-697.67,0.00038356,5]
[361828529,1747823677855,-5582.21,0.00038356,5]
[361828530,1747823677867,-480.01,0.00038356,5]
[361828531,1747823677879,-2282.96,0.00038356,5]
[361828532,1747823677891,-1657.0,0.00038356,5]
[361828533,1747823677903,-420.0,0.00038356,5]
[361828534,1747823677915,-799.92,0.00038356,5]
[361828535,1747823677928,-1063.9,0.00038356,5]
[361828536,1747823677941,-18765.11,0.00038356,5]
[361828537,1747823677954,-420.0,0.00038356,5]
[361828538,1747823677966,-673.17,0.00038356,5]
[361828539,1747823677978,-3847.23,0.00038356,5]
[361828540,1747823677990,-549.05,0.00038356,5]
[361828541,1747823678001,-2564.95,0.00038356,5]
[361828542,1747823678013,-474.32,0.00038356,5]
[361828543,1747823678025,-1818.07,0.00038356,5]
[361828544,1747823678036,-42262.48,0.00038356,5]
[361828545,1747823678047,-1719.68,0.00038356,5]
[361828546,1747823678059,-4510.74,0.00038356,5]
[361828547,1747823678070,-516.93,0.00038356,5]
[361828548,1747823678083,-3137.08,0.00038356,5]
[361828549,1747823678094,-506.82,0.00038356,5]
[361828550,1747823678106,-9532.22,0.00038356,5]
[361828551,1747823678118,-1001.23,0.00038356,5]
[361828552,1747823678129,-1349.86,0.00038356,5]
[361828553,1747823678140,-1554.78,0.00038356,5]
[361828554,1747823678152,-874.84,0.00038356,5]
[361828555,1747823678163,-627.61,0.00038356,5]
[361828556,1747823678175,-670.93,0.00038356,5]
[361828557,1747823678186,-420.0,0.00038356,5]
[361828558,1747823678198,-1909.1,0.00038356,5]
[361828559,1747823678209,-3667.82,0.00038356,5]
[361828560,1747823678220,-168.08,0.00038356,4]
[361828561,1747823678231,-151.79,0.00038356,2]
[361828562,1747823678243,-150.0,0.00038471,120]
[361828563,1747823678255,-350.26029,0.000386,120]
[361828564,1747823678266,-150.0,0.00038621,7]
[361828565,1747823678277,-160.89198534,0.00038621,7]
[361828566,1747823678287,-150.0,0.00038621,7]
[361828567,1747823678298,-150.0,0.00038621,7]
[361828568,1747823678308,-150.0,0.00038621,7]
[361828569,1747823678319,-150.0,0.00038621,7]
[361828570,1747823678331,-198.70638859,0.00038621,7]
[361828571,1747823678342,-217.84578181,0.00038621,7]
[361828572,1747823678353,-200.16618175,0.00038621,14]
[361828573,1747823678367,-868.63,0.0003863,5]
[361828574,1747823678379,-771.73,0.0003863,5]
[361828575,1747823678391,-1206.97,0.0003863,5]
[361828576,1747823678403,-1764.15,0.0003863,5]
[361828577,1747823678413,-550.16,0.0003863,5]
[361828578,1747823678424,-497.1,0.0003863,5]
[361828579,1747823678435,-965.56,0.0003863,5]
[361828580,1747823678446,-616.51,0.0003863,5]
[361828581,1747823678456,-562.65,0.0003863,5]
[361828582,1747823678467,-611.48,0.0003863,5]
[361828583,1747823678481,-506.54,0.0003863,5]
[361828584,1747823678492,-499.33,0.0003863,5]
[361828585,1747823678503,-911.46,0.0003863,5]
[361828586,1747823678513,-1153.75,0.0003863,5]
[361828587,1747823678524,-730.43,0.0003863,5]
[361828588,1747823678535,-579.77,0.0003863,5]
[361828589,1747823678546,-1697.54,0.0003863,5]
[361828590,1747823678557,-570.61,0.0003863,5]
[361828591,1747823678567,-788.01,0.0003863,5]
[361828592,1747823678578,-1490.72,0.0003863,5]
[361828593,1747823678588,-917.84,0.0003863,5]
[361828594,1747823678599,-642.67,0.0003863,5]
[361828595,1747823678610,-901.58,0.0003863,5]
[361828596,1747823678621,-807.74,0.0003863,5]
[361828597,1747823678632,-3015.53,0.0003863,5]
[361828598,1747823678642,-460.17,0.0003863,5]
[361828599,1747823678653,-642.11,0.0003863,5]
[361828600,1747823678663,-1185.77,0.0003863,5]
[361828601,1747823678674,-973.19,0.0003863,5]
[361828602,1747823678685,-497.57,0.0003863,5]
[361828603,1747823678696,-1098.15,0.0003863,5]
[361828604,1747823678706,-685.16,0.0003863,5]
[361828605,1747823678717,-448.34,0.0003863,5]
[361828606,1747823678728,-1485.21,0.0003863,5]
[361828607,1747823678738,-818.23,0.0003863,5]
[361828608,1747823678749,-443.81,0.0003863,5]
[361828609,1747823678772,-1526.88,0.0003863,5]
[361828610,1747823678796,-470.16,0.0003863,5]
[361828611,1747823678819,-443.58,0.0003863,5]
[361828612,1747823678842,-669.64,0.0003863,5]
[361828613,1747823679285,-420.0,0.0003863,5]
[361828614,1747823679308,-937.45,0.0003863,5]
[361828615,1747823679318,-2266.87,0.0003863,5]
[361828616,1747823679328,-442.68,0.0003863,5]
[361828617,1747823679339,-420.2637047,0.0003863,5]
[361828618,1747823679349,-420.0,0.0003863,5]
[361828619,1747823679359,-597.09,0.0003863,5]
[361828620,1747823679370,-655.53,0.0003863,5]
[361828621,1747823679381,-636.42,0.0003863,5]
[361828622,1747823679392,-838.78,0.0003863,5]
[361828623,1747823679406,-493.93,0.0003863,5]
[361828624,1747823679416,-560.23,0.0003863,5]
[361828625,1747823679426,-1078.18,0.0003863,5]
[361828626,1747823679436,-1065.69,0.0003863,5]
[361828627,1747823679447,-1253.93,0.0003863,5]
[361828628,1747823679457,-1274.75,0.0003863,5]
[361828629,1747823679467,-463.91,0.0003863,5]
[361828630,1747823679479,-721.97,0.0003863,5]
[361828631,1747823679489,-2322.3,0.0003863,5]
[361828632,1747823679499,-821.62,0.0003863,5]
[361828633,1747823679509,-422.38,0.0003863,5]
[361828634,1747823679519,-1544.61,0.0003863,5]
[361828635,1747823679529,-420.0,0.0003863,5]
[361828636,1747823679539,-550.85,0.0003863,5]
[361828637,1747823679549,-499.46,0.0003863,5]
[361828638,1747823679559,-678.04,0.0003863,5]
[361828639,1747823679569,-616.6,0.0003863,5]
[361828640,1747823679580,-546.75,0.0003863,5]
[361828641,1747823679590,-1170.85,0.0003863,5]
[361828642,1747823679600,-420.0,0.0003863,5]
[361828643,1747823679610,-1581.01,0.0003863,5]
[361828644,1747823679621,-2020.82,0.0003863,5]
[361828645,1747823679631,-1587.36,0.0003863,5]
[361828646,1747823679641,-528.73,0.0003863,5]
[361828647,1747823679651,-440.31,0.0003863,5]
[361828648,1747823679661,-420.0,0.0003863,5]
[361828649,1747823679672,-835.65,0.0003863,5]
[361828650,1747823679682,-530.24,0.0003863,5]
[361828651,1747823679692,-632.49,0.0003863,5]
[361828652,1747823679703,-712.53,0.0003863,5]
[361828653,1747823679713,-905.81,0.0003863,5]
[361828654,1747823679724,-1500.35,0.0003863,5]
[361828655,1747823679734,-913.23,0.0003863,5]
[361828656,1747823679744,-891.23,0.0003863,5]
[361828657,1747823679754,-532.78,0.0003863,5]
[361828658,1747823679764,-793.59,0.0003863,5]
[361828659,1747823679774,-716.67,0.0003863,5]
[361828660,1747823679784,-431.22,0.0003863,5]
[361828661,1747823679794,-3321.89,0.0003863,5]
[361828662,1747823679805,-655.87,0.0003863,5]
[361828663,1747823679815,-420.0,0.0003863,5]
[361828664,1747823679825,-464.92,0.0003863,5]
[361828665,1747823679835,-752.46,0.0003863,5]
[361828666,1747823679845,-1164.32,0.0003863,5]
[361828667,1747823679856,-447.46,0.0003863,5]
[361828668,1747823679866,-1182.51,0.0003863,5]
[361828669,1747823679877,-970.46,0.0003863,5]
[361828670,1747823679887,-2566.8,0.0003863,3]
[361828671,1747823679898,-986.1,0.0003863,5]
[361828672,1747823679908,-3544.76,0.0003863,5]
[361828673,1747823679918,-420.0,0.0003863,5]
[361828674,1747823679929,-528.46,0.0003863,5]
[361828675,1747823679939,-1116.24,0.0003863,5]
[361828676,1747823679951,-607.2,0.0003863,5]
[361828677,1747823679961,-498.41,0.0003863,5]
[361828678,1747823679971,-511.54,0.0003863,5]
[361828679,1747823679981,-1446.26,0.0003863,5]
[361828680,1747823679991,-635.53,0.0003863,5]
[361828681,1747823680003,-602.05,0.0003863,5]
[361828682,1747823680012,-3171.93,0.0003863,5]
[361828683,1747823680025,-672.06,0.0003863,5]
[361828684,1747823680035,-1136.92,0.0003863,5]
[361828685,1747823680044,-501.87,0.0003863,5]
[361828686,1747823680054,-420.0,0.0003863,5]
[361828687,1747823680065,-960.17,0.0003863,5]
[361828688,1747823680075,-1498.01,0.0003863,5]
[361828689,1747823680085,-165.41122251,0.0003863,5]
[361828690,1747823680095,-489.93,0.0003863,5]
[361828691,1747823680105,-1181.55,0.0003863,5]
[361828692,1747823680115,-1634.56,0.0003863,5]
[361828693,1747823680125,-731.06,0.0003863,5]
[361828694,1747823680134,-665.75,0.0003863,5]
[361828695,1747823680144,-725.49,0.0003863,5]
[361828696,1747823680154,-1010.87,0.0003863,5]
[361828697,1747823680164,-1218.91,0.0003863,5]
[361828698,1747823680174,-1168.31,0.0003863,5]
[361828699,1747823680183,-1264.38,0.0003863,5]
[361828700,1747823680193,-420.0,0.0003863,2]
[361828701,1747823680204,-584.07,0.0003863,5]
[361828702,1747823680214,-3033.08,0.0003863,5]
[361828703,1747823680224,-740.34,0.0003863,5]
[361828704,1747823680233,-507.85404156,0.0003863,5]
[361828705,1747823680243,-1236.73,0.0003863,5]
[361828706,1747823680253,-718.57,0.0003863,5]
[361828707,1747823680263,-2646.97,0.0003863,5]
[361828708,1747823680273,-3655.51,0.0003863,5]
[361828709,1747823680283,-441.43359606,0.0003863,5]
[361828710,1747823680293,-1194.67,0.0003863,5]
[361828711,1747823680303,-637.39,0.0003863,5]
[361828712,1747823680313,-2368.39,0.0003863,5]
[361828713,1747823680323,-932.97,0.0003863,5]
[361828714,1747823680335,-788.04,0.0003863,5]
[361828715,1747823680346,-475.79,0.0003863,5]
[361828716,1747823680357,-469.81,0.0003863,5]
[361828717,1747823680367,-1158.88,0.0003863,5]
[361828718,1747823680377,-2741.78,0.0003863,5]
[361828719,1747823680388,-1351.52,0.0003863,5]
[361828720,1747823680400,-1167.31,0.0003863,5]
[361828721,1747823680410,-1192.06,0.0003863,5]
[361828722,1747823680419,-2693.72,0.0003863,5]
[361828723,1747823680429,-664.46,0.0003863,5]
[361828724,1747823680442,-783.68,0.0003863,5]
[361828725,1747823680452,-2096.4,0.0003863,5]
[361828726,1747823680462,-1450.92,0.0003863,5]
[361828727,1747823680472,-1675.88,0.0003863,5]
[361828728,1747823680484,-421.11,0.0003863,5]
[361828729,1747823680496,-655.43,0.0003863,5]
[361828730,1747823680506,-1330.16,0.0003863,5]
[361828731,1747823680517,-506.87,0.0003863,5]
[361828732,1747823680527,-628.75,0.0003863,5]
[361828733,1747823680538,-470.23,0.0003863,5]
[361828734,1747823680549,-789.43,0.0003863,5]
[361828735,1747823680559,-2066.32,0.0003863,5]
[361828736,1747823680569,-543.38,0.0003863,5]
[361828737,1747823680580,-1884.88,0.0003863,5]
[361828738,1747823680590,-443.39,0.0003863,5]
[361828739,1747823680600,-814.52,0.0003863,5]
[361828740,1747823680610,-468.75,0.0003863,5]
[361828741,1747823680620,-2280.59,0.0003863,5]
[361828742,1747823680630,-420.0,0.0003863,5]
[361828743,1747823680641,-391.65558778,0.0003863,5]
[361828744,1747823680651,-1660.08,0.0003863,5]
[361828745,1747823680661,-2531.44,0.0003863,5]
[361828746,1747823680671,-891.37,0.0003863,5]
[361828747,1747823680681,-1229.28,0.0003863,5]
[361828748,1747823680690,-562.73,0.0003863,5]
[361828749,1747823680700,-639.64,0.0003863,5]
[361828750,1747823680710,-1520.14,0.0003863,5]
[361828751,1747823680721,-420.0,0.0003863,5]
[361828752,1747823680731,-2002.78,0.0003863,5]
[361828753,1747823680742,-504.03,0.0003863,5]
[361828754,1747823680752,-756.35,0.0003863,5]
[361828755,1747823680762,-2487.3,0.0003863,5]
[361828756,1747823680773,-829.63,0.0003863,5]
[361828757,1747823680783,-440.4,0.0003863,5]
[361828758,1747823680794,-1155.6,0.0003863,5]
[361828759,1747823680805,-512.22,0.0003863,5]
[361828760,1747823680815,-1069.06,0.0003863,5]
[361828761,1747823680826,-3548.27,0.0003863,5]
[361828762,1747823680837,-1131.24,0.0003863,5]
[361828763,1747823680847,-531.37,0.0003863,5]
[361828764,1747823680858,-438.38,0.0003863,5]
[361828765,1747823680868,-836.66,0.0003863,5]
[361828766,1747823680878,-1758.59,0.0003863,5]
[361828767,1747823680888,-2244.73,0.0003863,5]
[361828768,1747823680898,-706.99,0.0003863,5]
[361828769,1747823680908,-1303.3,0.0003863,5]
[361828770,1747823680918,-1671.68,0.0003863,5]
[361828771,1747823680929,-630.7,0.0003863,5]
[361828772,1747823680939,-1546.03,0.0003863,5]
[361828773,1747823680950,-1449.1,0.0003863,5]
[361828774,1747823680960,-1084.11,0.0003863,5]
[361828775,1747823680970,-796.16,0.0003863,5]
[361828776,1747823680981,-829.47,0.0003863,5]
[361828777,1747823680990,-560.22,0.0003863,5]
[361828778,1747823681000,-2061.87,0.0003863,5]
[361828779,1747823681010,-1759.24,0.0003863,5]
[361828780,1747823681020,-677.92,0.0003863,5]
[361828781,1747823681031,-420.0,0.0003863,5]
[361828782,1747823681040,-2008.9,0.0003863,5]
[361828783,1747823681051,-213.97711403,0.0003863,5]
[361828784,1747823681061,-603.25,0.0003863,5]
[361828785,1747823681071,-3335.62,0.0003863,5]
[361828786,1747823681083,-794.93,0.0003863,5]
[361828787,1747823681106,-462.11,0.0003863,5]
[361828788,1747823681126,-1384.78,0.0003863,5]
[361828789,1747823681149,-3088.45,0.0003863,5]
[361828790,1747823681170,-3415.98,0.0003863,5]
[361828791,1747823681194,-475.97,0.0003863,5]
[361828792,1747823681226,-420.0,0.0003863,5]
[361828793,1747823681257,-1441.04,0.0003863,5]
[361828794,1747823681282,-1360.17,0.0003863,5]
[361828795,1747823681295,-799.95,0.0003863,5]
[361828796,1747823681305,-1022.16,0.0003863,5]
[361828797,1747823681316,-2905.57,0.0003863,5]
[361828798,1747823681327,-2154.53,0.0003863,5]
[361828799,1747823681337,-1412.77,0.0003863,5]
[361828800,1747823681347,-1804.92,0.0003863,5]
[361828801,1747823681357,-931.82,0.0003863,5]
[361828802,1747823681367,-3820.81,0.0003863,5]
[361828803,1747823681378,-446.52,0.0003863,5]
[361828804,1747823681388,-3379.22,0.0003863,5]
[361828805,1747823681399,-552.29,0.0003863,5]
[361828806,1747823681410,-2204.62,0.0003863,5]
[361828807,1747823681420,-739.98,0.0003863,5]
[361828808,1747823681430,-1686.16,0.0003863,5]
[361828809,1747823681442,-638.15,0.0003863,5]
[361828810,1747823681452,-2851.0,0.0003863,5]
[361828811,1747823681463,-1365.61,0.0003863,5]
[361828812,1747823681474,-669.03,0.0003863,5]
[361828813,1747823681485,-641.93,0.0003863,5]
[361828814,1747823681496,-1513.514558,0.0003863,5]
[361828815,1747823681507,-605.2,0.0003863,5]
[361828816,1747823681518,-1056.24,0.0003863,5]
[361828817,1747823681528,-3414.72,0.0003863,5]
[361828818,1747823681539,-456.44,0.0003863,5]
[361828819,1747823681549,-2738.58,0.0003863,5]
[361828820,1747823681559,-626.72,0.0003863,5]
[361828821,1747823681570,-4019.16,0.0003863,5]
[361828822,1747823681580,-1961.22,0.0003863,5]
[361828823,1747823681591,-501.19,0.0003863,5]
[361828824,1747823681600,-437.02,0.0003863,5]
[361828825,1747823681611,-3829.73,0.0003863,5]
[361828826,1747823681621,-1171.35,0.0003863,5]
[361828827,1747823681631,-1602.68,0.0003863,5]
[361828828,1747823681642,-1195.86,0.0003863,5]
[361828829,1747823681654,-1595.56,0.0003863,5]
[361828830,1747823681665,-2127.07,0.0003863,5]
[361828831,1747823681675,-1620.22,0.0003863,5]
[361828832,1747823681685,-975.42,0.0003863,5]
[361828833,1747823681695,-1403.63,0.0003863,5]
[361828834,1747823681706,-663.27,0.0003863,5]
[361828835,1747823681716,-1651.18,0.0003863,5]
[361828836,1747823681728,-4718.07,0.0003863,5]
[361828837,1747823681738,-560.95,0.0003863,5]
[361828838,1747823681749,-701.41,0.0003863,5]
[361828839,1747823681758,-708.42,0.0003863,5]
[361828840,1747823681769,-420.0,0.0003863,5]
[361828841,1747823681779,-1131.94,0.0003863,5]
[361828842,1747823681792,-3071.77,0.0003863,5]
[361828843,1747823681802,-1890.69,0.0003863,5]
[361828844,1747823681814,-251.92227193,0.0003863,5]
[361828845,1747823681824,-2588.8,0.0003863,5]
[361828846,1747823681834,-3358.3,0.0003863,5]
[361828847,1747823681844,-950.44,0.0003863,5]
[361828848,1747823681854,-1081.97,0.0003863,5]
[361828849,1747823681864,-447.09,0.0003863,5]
[361828850,1747823681873,-1061.79,0.0003863,5]
[361828851,1747823681883,-3165.26,0.0003863,5]
[361828852,1747823681893,-1578.73,0.0003863,5]
[361828853,1747823681903,-418.5436435,0.0003863,5]
[361828854,1747823681913,-437.54,0.0003863,5]
[361828855,1747823681922,-801.31,0.0003863,5]
[361828856,1747823681932,-1117.87,0.0003863,5]
[361828857,1747823681942,-590.41,0.0003863,5]
[361828858,1747823681953,-646.24,0.0003863,5]
[361828859,1747823681963,-469.33,0.0003863,5]
[361828860,1747823681973,-1582.05,0.0003863,5]
[361828861,1747823681984,-944.65,0.0003863,5]
[361828862,1747823681994,-1388.27,0.0003863,5]
[361828863,1747823682183,-817.62,0.0003863,5]
[361828864,1747823682194,-1313.42,0.0003863,5]
[361828865,1747823682204,-2499.18,0.0003863,5]
[361828866,1747823682213,-591.99,0.0003863,5]
[361828867,1747823682223,-2712.821305,0.0003863,5]
[361828868,1747823682233,-2676.06,0.0003863,5]
[361828869,1747823682244,-1630.17,0.0003863,5]
[361828870,1747823682253,-707.44,0.0003863,5]
[361828871,1747823682265,-2046.62,0.0003863,5]
[361828872,1747823682274,-524.92,0.0003863,5]
[361828873,1747823682284,-844.05,0.0003863,5]